fUST/lending_fUST_20250126
["ID","MTS","AMOUNT","RATE_DAILY","PERIOD"]
[350429690,1737876641009,-1050.14,0.00016438,2]
[350429691,1737876641019,-500.0,0.00016438,2]
[350429692,1737876641028,-500.0,0.00016438,2]
[350429693,1737876641038,-500.0,0.00016438,2]
[350429694,1737876641047,-500.0,0.00016438,2]
[350429695,1737876641058,-500.0,0.00016438,2]
[350429696,1737876641067,-500.0,0.00016438,2]
[350429697,1737876641077,-500.0,0.00016438,2]
[350429698,1737876641086,-500.0,0.00016438,2]
[350429699,1737876641095,-500.0,0.00016438,2]
[350429700,1737876641105,-500.0,0.00016438,2]
[350429701,1737876641116,-254.19359234,0.00016438,2]
[350429702,1737876641126,-500.0,0.00016438,2]
[350429703,1737876641135,-502.175108,0.00016438,2]
[350429704,1737876641145,-1553.08,0.00016438,2]
[350429705,1737876641155,-1553.08,0.00016438,2]
[350429706,1737876641165,-500.0,0.00016438,2]
[350429707,1737876641175,-1553.08,0.00016438,2]
[350429708,1737876641184,-1553.08,0.00016438,2]
[350429709,1737876641193,-1553.08,0.00016438,2]
[350429710,1737876641202,-1553.08,0.00016438,2]
[350429711,1737876641211,-1553.08,0.00016438,2]
[350429712,1737876641222,-1553.08,0.00016438,2]
[350429713,1737876641231,-500.0,0.00016438,2]
[350429714,1737876641240,-1553.08,0.00016438,2]
[350429715,1737876641249,-1553.08,0.00016438,2]
[350429716,1737876641259,-1553.08,0.00016438,2]
[350429717,1737876641269,-1553.08,0.00016438,2]
[350429718,1737876641278,-500.0,0.00016438,2]
[350429719,1737876641287,-500.0,0.00016438,2]
[350429720,1737876641296,-500.0,0.00016438,2]
[350429721,1737876641423,-538.6,0.00016438,2]
[350429722,1737876641432,-500.0,0.00016438,2]
[350429723,1737876641441,-500.0,0.00016438,2]
[350429724,1737876641451,-500.0,0.00016438,2]
[350429725,1737876641461,-500.0,0.00016438,2]
[350429726,1737876641470,-500.0,0.00016438,2]
[350429727,1737876641480,-500.0,0.00016438,2]
[350429728,1737876641489,-500.0,0.00016438,2]
[350429729,1737876641498,-577.99437141,0.00016438,2]
[350429730,1737876641507,-2679.38,0.00016438,2]
[350429731,1737876641516,-500.0167824,0.00016438,2]
[350429732,1737876641525,-500.0,0.00016438,2]
[350429733,1737876641535,-500.0,0.00016438,2]
[350429734,1737876641544,-500.0,0.00016438,2]
[350429735,1737876641553,-500.0,0.00016438,2]
[350429736,1737876641563,-1216.08,0.00016438,2]
[350429737,1737876641572,-500.0,0.00016438,2]
[350429738,1737876641582,-500.0,0.00016438,2]
[350429739,1737876641592,-625.30064821,0.00016438,2]
[350429740,1737876641605,-500.0,0.00016438,2]
[350429741,1737876641616,-567.94976231,0.00016438,2]
[350429742,1737876641626,-500.0,0.00016438,2]
[350429743,1737876641635,-500.0,0.00016438,2]
[350429744,1737876641645,-500.0,0.00016438,2]
[350429745,1737876641654,-94.55353001,0.00016438,2]
[350429760,1737876643013,-405.44646999,0.00016438,2]
[350429761,1737876643024,-434.41125741,0.00016438,2]
[350429762,1737876643033,-500.0,0.00016438,2]
[350429763,1737876643043,-104.99382831,0.00016438,2]
[350429771,1737876647953,-395.00617169,0.00016438,2]
[350429772,1737876647962,-500.0,0.00016438,2]
[350429773,1737876647971,-500.0,0.00016438,2]
[350429774,1737876647980,-500.0,0.00016438,2]
[350429775,1737876647990,-500.0,0.00016438,2]
[350429776,1737876647999,-500.0,0.00016438,2]
[350429777,1737876648008,-500.0,0.00016438,2]
[350429778,1737876648018,-500.0,0.00016438,2]
[350429779,1737876648027,-500.0,0.00016438,2]
[350429780,1737876648037,-500.0,0.00016438,2]
[350429781,1737876648046,-638.94149389,0.00016438,2]
[350429782,1737876648055,-500.0,0.00016438,2]
[350429783,1737876648065,-500.0,0.00016438,2]
[350429784,1737876648075,-500.0,0.00016438,2]
[350429785,1737876648084,-500.0,0.00016438,2]
[350429786,1737876648094,-500.0,0.00016438,2]
[350429787,1737876648104,-500.0,0.00016438,2]
[350429788,1737876648113,-500.0,0.00016438,2]
[350429789,1737876648124,-500.0,0.00016438,2]
[350429790,1737876648134,-500.0,0.00016438,2]
[350429791,1737876648144,-500.0,0.00016438,2]
[350429792,1737876648154,-500.0,0.00016438,2]
[350429793,1737876648164,-500.0,0.00016438,2]
[350429794,1737876648174,-500.0,0.00016438,2]
[350429795,1737876648184,-123.25508852,0.00016438,2]
[350429796,1737876648372,-631.56,0.00016438,2]
[350429797,1737876648383,-136.15491148,0.00016438,2]
[350429798,1737876648393,-500.0,0.00016438,2]
[350429799,1737876648402,-399.7720412,0.00016438,2]
[350429801,1737877128412,153.22,0.000219,31]
[350429802,1737877128474,153.22,0.000219,31]
[350429803,1737877128528,153.22,0.000219,31]
[350429804,1737877128643,153.22,0.000219,31]
[350429805,1737877128701,153.22,0.000219,31]
[350429806,1737877128773,153.22,0.000219,31]
[350429807,1737877129011,153.22,0.000219,31]
[350429808,1737877323775,2035.8166893,0.00015006,2]
[350429813,1737877406040,294.5507269,0.00014967,2]
[350429815,1737877617569,152.0,0.00014624,2]
[350429816,1737877618120,152.0,0.00014624,2]
[350429817,1737877618701,152.0,0.00014624,2]
[350429818,1737877619281,152.0,0.00014624,2]
[350429819,1737877619945,152.0,0.00014624,2]
[350429820,1737877620503,152.0,0.00014624,2]
[350429821,1737877621033,152.0,0.00014624,2]
[350429822,1737877621580,152.0,0.00014624,2]
[350429823,1737877626831,163.0,0.00014624,2]
[350429824,1737877627516,163.0,0.00014624,2]
[350429825,1737877628144,163.0,0.00014624,2]
[350429826,1737877628754,163.0,0.00014624,2]
[350429827,1737877629366,163.0,0.00014624,2]
[350429828,1737877629999,163.0,0.00014624,2]
[350429829,1737877630592,163.0,0.00014624,2]
[350429830,1737877741152,279.334918,0.00013973,2]
[350429831,1737877800904,294.5507269,0.00014919,2]
[350429832,1737877816906,294.5507269,0.00014919,2]
[350429845,1737877832337,-294.5507269,0.0001507,2]
[350429846,1737877832346,-299.178,0.0001562,2]
[350429847,1737877832355,-197.0,0.00015648,2]
[350429848,1737877832364,-197.74,0.00015648,2]
[350429849,1737877832374,-152.0,0.00015648,2]
[350429851,1737877832383,-152.0,0.00015648,2]
[350429852,1737877832392,-152.0,0.00015648,2]
[350429854,1737877832401,-154.49,0.00015648,2]
[350429856,1737877832411,-300.0,0.00015776,2]
[350429858,1737877832421,-152.0,0.00015777,2]
[350429873,1737877832564,-152.0,0.00015777,2]
[350429876,1737877832574,-152.0,0.00015777,2]
[350429879,1737877832583,-152.0,0.00015777,2]
[350429881,1737877832592,-168.06,0.00015777,2]
[350429884,1737877832601,-160.0,0.00015777,2]
[350429887,1737877832611,-160.0,0.00015777,2]
[350429889,1737877832620,-2961.02765781,0.00016,2]
[350429892,1737877832736,-3216.52141648,0.00016,2]
[350429893,1737877833085,294.5507269,0.00014919,2]
[350429906,1737877838044,-10332.37618121,0.00016,2]
[350429908,1737877838055,-126509.11075197,0.000164,2]
[350429913,1737877838097,-14379.41942396,0.000164,2]
[350429915,1737877838109,-797.45686413,0.000164,2]
[350429922,1737877840348,-549.80161394,0.000164,2]
[350429923,1737877840358,-150.636,0.00016427,2]
[350429924,1737877840367,-145.34575104,0.00016427,2]
[350429925,1737877840380,-1394.55924896,0.00016427,2]
[350429926,1737877840390,-536.0,0.00016427,2]
[350429927,1737877840399,-208.61019429,0.00016427,2]
[350429928,1737877840413,-1062.546925,0.00016427,2]
[350429934,1737877844534,-1033.84288071,0.00016427,2]
[350429935,1737877844545,-500.0,0.00016437,2]
[350429936,1737877844555,-143.44187513,0.00016437,2]
[350429946,1737878003227,3000.0,0.00022,30]
[350429947,1737878227614,199.823409,0.00014953,2]
[350429949,1737878482099,22998.56518392,0.00023964,120]
[350429950,1737878521201,3374.07768301,0.00023922,120]
[350429951,1737878521227,4292.11031699,0.00023922,120]
[350430128,1737878621062,265.368172,0.00013973,2]
[350435212,1737878792437,199.823409,0.00015,2]
[350435599,1737878808045,199.823409,0.00015,2]
[350435761,1737878814334,166.13,0.0001469,2]
[350435979,1737878823399,199.823409,0.00015,2]
[350436081,1737878827548,160.0,0.00014625,2]
[350436098,1737878828232,160.0,0.00014625,2]
[350436111,1737878828811,160.0,0.00014625,2]
[350436130,1737878829428,160.0,0.00014625,2]
[350436147,1737878829996,223.47,0.00014625,2]
[350436165,1737878830585,160.0,0.00014582,2]
[350436173,1737878830847,157.0,0.0001469,2]
[350436183,1737878831164,160.0,0.00014582,2]
[350436197,1737878831617,157.0,0.0001469,2]
[350436203,1737878831784,160.0,0.00014582,2]
[350436215,1737878832186,157.0,0.0001469,2]
[350436221,1737878832374,160.0,0.00014582,2]
[350436232,1737878832762,157.0,0.0001469,2]
[350436238,1737878832955,261.98,0.00014582,2]
[350436250,1737878833332,157.0,0.0001469,2]
[350436263,1737878833921,157.0,0.0001469,2]
[350436279,1737878834486,157.0,0.0001469,2]
[350436296,1737878835093,157.0,0.0001469,2]
[350436315,1737878835725,157.0,0.0001469,2]
[350436333,1737878836336,157.0,0.0001469,2]
[350436349,1737878836939,157.0,0.0001469,2]
[350436366,1737878837535,157.0,0.0001469,2]
[350436383,1737878838114,157.0,0.0001469,2]
[350436398,1737878838658,157.0,0.0001469,2]
[350436403,1737878838846,199.823409,0.00015,2]
[350436412,1737878839212,157.0,0.00014631,2]
[350436424,1737878839747,157.0,0.00014631,2]
[350436432,1737878840322,307.74,0.00014631,2]
[350436845,1737878855326,199.823409,0.00015,2]
[350437249,1737878870848,199.823409,0.00015,2]
[350437725,1737878887373,199.823409,0.00015,2]
[350438204,1737878903862,199.823409,0.00015,2]
[350438657,1737878920645,199.823409,0.00015,2]
[350438965,1737878936464,199.823409,0.00015,2]
[350438966,1737878953011,199.823409,0.00015,2]
[350439135,1737878968629,199.823409,0.00015,2]
[350439158,1737878969231,501.51,0.00022,30]
[350439589,1737878983948,199.823409,0.00015,2]
[350439595,1737878999852,199.823409,0.00015,2]
[350439596,1737879017495,199.823409,0.00015,2]
[350439600,1737879032437,-199.823409,0.00015151,2]
[350439601,1737879032447,-300.0,0.00015209,2]
[350439602,1737879032456,-143.8323383,0.0001521,2]
[350439603,1737879032468,-1426.51304286,0.0001521,2]
[350439608,1737879038112,-315.0,0.0001521,2]
[350439609,1737879038123,-1150.60243313,0.0001521,2]
[350439610,1737879038135,-1599.13135451,0.0001521,2]
[350439611,1737879038167,-338.30248079,0.0001521,2]
[350439612,1737879038365,-293.33861973,0.0001521,2]
[350439613,1737879038379,-12818.60030476,0.0001521,2]
[350439626,1737879041026,-512.37431689,0.0001521,2]
[350439629,1737879043316,-3859.31463713,0.0001521,2]
[350439630,1737879043327,-169.53,0.00015582,2]
[350439631,1737879043336,-286.755,0.0001562,2]
[350439632,1737879043346,-155.0,0.0001569,2]
[350439633,1737879043356,-155.0,0.0001569,2]
[350439634,1737879043366,-155.0,0.0001569,2]
[350439635,1737879043376,-155.0,0.0001569,2]
[350439636,1737879043385,-155.0,0.0001569,2]
[350439637,1737879043395,-155.0,0.0001569,2]
[350439638,1737879043405,-155.0,0.0001569,2]
[350439639,1737879043415,-155.0,0.0001569,2]
[350439640,1737879043424,-155.0,0.0001569,2]
[350439641,1737879043434,-155.0,0.0001569,2]
[350439642,1737879043444,-155.0,0.0001569,2]
[350439643,1737879043453,-155.0,0.0001569,2]
[350439644,1737879043463,-155.0,0.0001569,2]
[350439645,1737879043472,-155.0,0.0001569,2]
[350439647,1737879043482,-155.0,0.0001569,2]
[350439648,1737879043491,-155.0,0.0001569,2]
[350439649,1737879043500,-155.0,0.0001569,2]
[350439650,1737879043510,-155.0,0.0001569,2]
[350439651,1737879043521,-155.0,0.0001569,2]
[350439652,1737879043531,-155.0,0.0001569,2]
[350439653,1737879043541,-395.0,0.00016175,2]
[350439654,1737879043551,-578.75710798,0.00016268,2]
[350439655,1737879043563,-2867.1923588,0.00016268,2]
[350442315,1737879197678,-155.0,0.00015857,2]
[350442316,1737879197713,-155.0,0.00015857,2]
[350442317,1737879197743,-182.4,0.00015857,2]
[350442318,1737879197776,-6147.60594071,0.00016375,2]
[350442319,1737879197812,-300.0,0.00016426,2]
[350442320,1737879197843,-536.0,0.00016427,2]
[350442321,1737879197877,-1259.479,0.00016427,2]
[350442322,1737879197911,-500.0,0.00016438,2]
[350442323,1737879197943,-500.0,0.00016438,2]
[350442324,1737879197978,-500.0,0.00016438,2]
[350442325,1737879198009,-500.0,0.00016438,2]
[350442326,1737879198043,-500.0,0.00016438,2]
[350442327,1737879198075,-313.10041923,0.00016438,2]
[350442328,1737879198109,-500.0,0.00016438,2]
[350442329,1737879198143,-500.0,0.00016438,2]
[350442330,1737879198178,-418.00161417,0.00016438,2]
[350442331,1737879198212,-500.0,0.00016438,2]
[350442332,1737879198244,-500.0,0.00016438,2]
[350442333,1737879198277,-502.82934761,0.00016438,2]
[350442334,1737879198311,-172.80249129,0.00016438,2]
[350442335,1737879198349,-503.32043886,0.00016438,2]
[350442336,1737879198383,-358.6852714,0.00016438,2]
[350442337,1737879198417,-500.0,0.00016438,2]
[350442338,1737879198452,-500.0,0.00016438,2]
[350442339,1737879198486,-524.70315493,0.00016438,2]
[350442340,1737879198520,-500.0,0.00016438,2]
[350442341,1737879198552,-500.0,0.00016438,2]
[350442342,1737879198586,-500.0,0.00016438,2]
[350442343,1737879198620,-500.0,0.00016438,2]
[350442344,1737879198655,-500.0,0.00016438,2]
[350442345,1737879198687,-500.0,0.00016438,2]
[350442346,1737879198717,-532.30693044,0.00016438,2]
[350442347,1737879198942,-500.0,0.00016438,2]
[350442348,1737879198973,-500.0,0.00016438,2]
[350442349,1737879199003,-500.0,0.00016438,2]
[350442350,1737879199032,-500.0,0.00016438,2]
[350442351,1737879199062,-500.0,0.00016438,2]
[350442352,1737879199093,-500.0,0.00016438,2]
[350442353,1737879199123,-500.0,0.00016438,2]
[350442354,1737879199153,-500.0,0.00016438,2]
[350442355,1737879199183,-500.0,0.00016438,2]
[350442356,1737879199212,-500.0,0.00016438,2]
[350442357,1737879199241,-500.0,0.00016438,2]
[350442358,1737879199271,-500.0,0.00016438,2]
[350442359,1737879199301,-532.92688599,0.00016438,2]
[350442360,1737879199330,-500.0,0.00016438,2]
[350442361,1737879199361,-500.0,0.00016438,2]
[350442362,1737879199391,-500.0,0.00016438,2]
[350442363,1737879199421,-500.0,0.00016438,2]
[350442364,1737879199450,-500.0,0.00016438,2]
[350442365,1737879199480,-500.0,0.00016438,2]
[350442366,1737879199508,-500.0,0.00016438,2]
[350442367,1737879199539,-500.0,0.00016438,2]
[350442368,1737879199567,-500.0,0.00016438,2]
[350442369,1737879199596,-500.0,0.00016438,2]
[350442370,1737879199625,-500.0,0.00016438,2]
[350442371,1737879199653,-500.0,0.00016438,2]
[350442372,1737879199682,-500.0,0.00016438,2]
[350442373,1737879199711,-500.0,0.00016438,2]
[350442374,1737879199739,-853.85,0.00016438,2]
[350442375,1737879199769,-500.0,0.00016438,2]
[350442376,1737879199796,-500.0,0.00016438,2]
[350442377,1737879199824,-500.0,0.00016438,2]
[350442378,1737879199852,-500.0,0.00016438,2]
[350442379,1737879199881,-410.89762995,0.00016438,2]
[350442380,1737879199910,-500.0,0.00016438,2]
[350442381,1737879199941,-500.0,0.00016438,2]
[350442382,1737879199970,-500.0,0.00016438,2]
[350442383,1737879199999,-500.0,0.00016438,2]
[350442384,1737879200027,-500.0,0.00016438,2]
[350442385,1737879200057,-500.0,0.00016438,2]
[350442386,1737879200084,-500.0,0.00016438,2]
[350442387,1737879200113,-500.0,0.00016438,2]
[350442388,1737879200141,-500.0,0.00016438,2]
[350442389,1737879200170,-500.0,0.00016438,2]
[350442390,1737879200199,-514.63382503,0.00016438,2]
[350442391,1737879200227,-500.0,0.00016438,2]
[350442392,1737879200254,-500.0,0.00016438,2]
[350442393,1737879200282,-500.0,0.00016438,2]
[350442394,1737879200310,-500.0,0.00016438,2]
[350442395,1737879200337,-500.0,0.00016438,2]
[350442396,1737879200368,-500.0,0.00016438,2]
[350442397,1737879200396,-500.0,0.00016438,2]
[350442398,1737879200425,-500.0,0.00016438,2]
[350442399,1737879200454,-500.0,0.00016438,2]
[350442400,1737879200482,-159.07903918,0.00016438,2]
[350442401,1737879200512,-500.0,0.00016438,2]
[350442402,1737879200541,-500.0,0.00016438,2]
[350442403,1737879200570,-500.0,0.00016438,2]
[350442404,1737879200598,-500.0,0.00016438,2]
[350442405,1737879200626,-500.0,0.00016438,2]
[350442406,1737879200654,-500.0,0.00016438,2]
[350442407,1737879200683,-500.0,0.00016438,2]
[350442408,1737879200711,-500.0,0.00016438,2]
[350442409,1737879200740,-500.0,0.00016438,2]
[350442410,1737879200768,-500.0,0.00016438,2]
[350442411,1737879200797,-500.0,0.00016438,2]
[350442412,1737879200923,-155.0,0.00016438,2]
[350442413,1737879200934,-155.0,0.00016438,2]
[350442414,1737879200946,-182.4,0.00016438,2]
[350442415,1737879200958,-7.6,0.00016438,2]
[350442416,1737879200967,-246.93040365,0.00016438,2]
[350442417,1737879200976,-500.0,0.00016438,2]
[350442418,1737879200986,-500.0,0.00016438,2]
[350442419,1737879200995,-457.24470674,0.00016438,2]
[350442420,1737879201005,-500.0,0.00016438,2]
[350442421,1737879201014,-320.94624375,0.00016438,2]
[350442422,1737879201024,-500.0,0.00016438,2]
[350442423,1737879201033,-640.68,0.00016438,2]
[350442424,1737879201043,-500.0,0.00016438,2]
[350442425,1737879201052,-500.0,0.00016438,2]
[350442426,1737879201061,-500.0,0.00016438,2]
[350442427,1737879201071,-500.0,0.00016438,2]
[350442428,1737879201080,-474.20458657,0.00016438,7]
[350442429,1737879201091,-300.0,0.00016438,7]
[350442430,1737879201108,-225.79541343,0.00016438,7]
[350442431,1737879201118,-310.20458657,0.00016438,2]
[350442432,1737879201130,-189.79541343,0.00016438,2]
[350442433,1737879201139,-500.0,0.00016438,2]
[350442434,1737879201148,-500.0,0.00016438,2]
[350442435,1737879201158,-69.68358657,0.00016438,2]
[350442436,1737879201169,-430.31641343,0.00016438,2]
[350442437,1737879201178,-69.68358657,0.00016438,2]
[350442438,1737879201189,-430.31641343,0.00016438,2]
[350442439,1737879201199,-69.68358657,0.00016438,2]
[350442440,1737879201210,-430.31641343,0.00016438,2]
[350442441,1737879201220,-69.68358657,0.00016438,2]
[350442442,1737879201231,-430.31641343,0.00016438,2]
[350442443,1737879201240,-69.68358657,0.00016438,2]
[350442444,1737879201252,-84.6669574,0.00016438,2]
[350442445,1737879201261,-415.3330426,0.00016438,2]
[350442446,1737879201273,-84.6669574,0.00016438,2]
[350442447,1737879201282,-228.43346183,0.00016438,2]
[350442448,1737879201299,-500.0,0.00016438,2]
[350442449,1737879201316,-500.0,0.00016438,2]
[350442450,1737879201329,-418.00161417,0.00016438,2]
[350442451,1737879201366,-500.0,0.00016438,2]
[350442452,1737879201377,-421.304924,0.00016438,2]
[350442453,1737879201387,-78.695076,0.00016438,2]
[350442454,1737879201399,-421.304924,0.00016438,2]
[350442455,1737879201408,-81.52442361,0.00016438,2]
[350442456,1737879201420,-172.80249129,0.00016438,2]
[350442457,1737879201438,-245.6730851,0.00016438,2]
[350442458,1737879201447,-257.64735376,0.00016438,2]
[350442459,1737879201459,-242.35264624,0.00016438,2]
[350442460,1737879201469,-116.33262516,0.00016438,2]
[350442461,1737879201480,-383.66737484,0.00016438,2]
[350442462,1737879201489,-116.33262516,0.00016438,2]
[350442463,1737879201501,-500.0,0.00016438,2]
[350442464,1737879201512,-524.70315493,0.00016438,2]
[350442465,1737879201524,-500.0,0.00016438,2]
[350442466,1737879201691,-500.0,0.00016438,2]
[350442467,1737879201703,-500.0,0.00016438,2]
[350442468,1737879201722,-500.0,0.00016438,2]
[350442469,1737879201734,-92.79421991,0.00016438,2]
[350442470,1737879201743,-407.20578009,0.00016438,2]
[350442471,1737879201755,-92.79421991,0.00016438,2]
[350442472,1737879201764,-407.20578009,0.00016438,2]
[350442473,1737879201776,-92.79421991,0.00016438,2]
[350442474,1737879201785,-439.51271053,0.00016438,2]
[350442475,1737879201797,-60.48728947,0.00016438,2]
[350442476,1737879201806,-204.720114,0.00016438,2]
[350442477,1737879201815,-234.79259653,0.00016438,2]
[350442478,1737879201832,-265.20740347,0.00016438,2]
[350442479,1737879201841,-234.79259653,0.00016438,2]
[350442480,1737879201853,-265.20740347,0.00016438,2]
[350442481,1737879201862,-234.79259653,0.00016438,2]
[350442482,1737879201873,-500.0,0.00016438,2]
[350442483,1737879201884,-430.61740347,0.00016438,2]
[350442484,1737879201894,-69.38259653,0.00016438,2]
[350442485,1737879201905,-430.61740347,0.00016438,2]
[350442486,1737879201914,-69.38259653,0.00016438,2]
[350442487,1737879201926,-430.61740347,0.00016438,2]
[350442488,1737879201935,-69.38259653,0.00016438,2]
[350442489,1737879201947,-430.61740347,0.00016438,2]
[350442490,1737879201957,-69.38259653,0.00016438,2]
[350442491,1737879201969,-430.61740347,0.00016438,2]
[350442492,1737879201979,-69.38259653,0.00016438,2]
[350442493,1737879201990,-430.61740347,0.00016438,2]
[350442494,1737879201999,-69.38259653,0.00016438,2]
[350442495,1737879202011,-430.61740347,0.00016438,2]
[350442496,1737879202020,-69.38259653,0.00016438,2]
[350442497,1737879202031,-430.61740347,0.00016438,2]
[350442498,1737879202040,-69.38259653,0.00016438,2]
[350442499,1737879202052,-434.05275882,0.00016438,2]
[350442500,1737879202061,-98.87412717,0.00016438,2]
[350442501,1737879202073,-401.12587283,0.00016438,2]
[350442502,1737879202083,-98.87412717,0.00016438,2]
[350442503,1737879202095,-403.91982537,0.00016438,2]
[350442504,1737879202104,-96.08017463,0.00016438,2]
[350442505,1737879202116,-500.0,0.00016438,2]
[350442506,1737879202127,-180.45982537,0.00016438,2]
[350442507,1737879202136,-319.54017463,0.00016438,2]
[350442508,1737879202149,-456.99982537,0.00016438,2]
[350442509,1737879202159,-43.00017463,0.00016438,2]
[350442510,1737879202170,-500.0,0.00016438,2]
[350442511,1737879202182,-233.53982537,0.00016438,2]
[350442512,1737879202191,-266.46017463,0.00016438,2]
[350442513,1737879202202,-500.0,0.00016438,2]
[350442514,1737879202214,-10.07982537,0.00016438,2]
[350442515,1737879202223,-489.92017463,0.00016438,2]
[350442516,1737879202235,-286.61982537,0.00016438,2]
[350442517,1737879202244,-213.38017463,0.00016438,2]
[350442518,1737879202256,-500.0,0.00016438,2]
[350442519,1737879202267,-63.15982537,0.00016438,2]
[350442520,1737879202277,-436.84017463,0.00016438,2]
[350442521,1737879202288,-339.69982537,0.00016438,2]
[350442522,1737879202298,-160.30017463,0.00016438,2]
[350442523,1737879202309,-500.0,0.00016438,2]
[350442524,1737879202320,-116.23982537,0.00016438,2]
[350442525,1737879202330,-737.61017463,0.00016438,2]
[350442526,1737879202342,-38.92982537,0.00016438,2]
[350442527,1737879202351,-461.07017463,0.00016438,2]
[350442528,1737879202363,-38.92982537,0.00016438,2]
[350442529,1737879202375,-461.07017463,0.00016438,2]
[350442530,1737879202386,-38.92982537,0.00016438,2]
[350442531,1737879202395,-461.07017463,0.00016438,2]
[350442532,1737879202406,-38.92982537,0.00016438,2]
[350442533,1737879202415,-461.07017463,0.00016438,2]
[350442534,1737879202427,-38.92982537,0.00016438,2]
[350442535,1737879202436,-371.96780458,0.00016438,2]
[350442536,1737879202447,-128.03219542,0.00016438,2]
[350442537,1737879202456,-371.96780458,0.00016438,2]
[350442538,1737879202467,-128.03219542,0.00016438,2]
[350442539,1737879202476,-371.96780458,0.00016438,2]
[350442540,1737879202488,-128.03219542,0.00016438,2]
[350442541,1737879202497,-371.96780458,0.00016438,2]
[350442542,1737879202509,-128.03219542,0.00016438,2]
[350442543,1737879202519,-371.96780458,0.00016438,2]
[350442544,1737879202531,-128.03219542,0.00016438,2]
[350442545,1737879202540,-371.96780458,0.00016438,2]
[350442546,1737879202551,-128.03219542,0.00016438,2]
[350442547,1737879202561,-371.96780458,0.00016438,2]
[350442548,1737879202572,-128.03219542,0.00016438,2]
[350442549,1737879202581,-183.16453885,0.00016438,2]
[350442550,1737879202590,-188.80326573,0.00016438,2]
[350442551,1737879202602,-311.19673427,0.00016438,2]
[350442552,1737879202612,-188.80326573,0.00016438,2]
[350442553,1737879202623,-311.19673427,0.00016438,2]
[350442554,1737879202632,-188.80326573,0.00016438,2]
[350442555,1737879202645,-311.19673427,0.00016438,2]
[350442556,1737879202654,-188.80326573,0.00016438,2]
[350442557,1737879202665,-422.28673427,0.00016438,2]
[350442558,1737879202675,-92.34709076,0.00016438,2]
[350442559,1737879202686,-407.65290924,0.00016438,2]
[350442560,1737879202695,-92.34709076,0.00016438,2]
[350442561,1737879202707,-407.65290924,0.00016438,2]
[350442562,1737879202716,-92.34709076,0.00016438,2]
[350442563,1737879202727,-407.65290924,0.00016438,2]
[350442564,1737879202737,-92.34709076,0.00016438,2]
[350442565,1737879202748,-407.65290924,0.00016438,2]
[350442566,1737879202757,-92.34709076,0.00016438,2]
[350442567,1737879202768,-407.65290924,0.00016438,2]
[350442568,1737879202777,-92.34709076,0.00016438,2]
[350442569,1737879202788,-407.65290924,0.00016438,2]
[350442570,1737879202797,-92.34709076,0.00016438,2]
[350442571,1737879202809,-407.65290924,0.00016438,2]
[350442572,1737879202818,-92.34709076,0.00016438,2]
[350442573,1737879202829,-407.65290924,0.00016438,2]
[350442574,1737879202839,-92.34709076,0.00016438,2]
[350442575,1737879202854,-407.65290924,0.00016438,2]
[350442576,1737879202863,-92.34709076,0.00016438,2]
[350442577,1737879202875,-159.07903918,0.00016438,2]
[350442578,1737879202887,-248.57387006,0.00016438,2]